bitfinex-derivatives/quotes_BTCF0:USTF0_20241125
["timestamp","ask_amount","ask_price","bid_price","bid_amount"]
[1732517819739,0.050889,98139.0,98138.0,0.13364]
[1732517821839,0.050889,98139.0,98138.0,0.18453]
[1732517822736,0.3608,98143.0,98142.0,0.050887]
[1732517822936,0.411687,98143.0,98142.0,0.050887]
[1732517826742,0.3608,98143.0,98142.0,0.050887]
[1732517827454,0.3608,98143.0,98142.0,0.184447]
[1732517829348,0.411687,98143.0,98142.0,0.184447]
[1732517834253,0.3608,98143.0,98142.0,0.184447]
[1732517835854,0.48236546,98143.0,98142.0,0.184447]
[1732517836563,0.3608,98143.0,98142.0,0.184447]
[1732517837060,0.3608,98143.0,98141.0,0.24386777]
[1732517837061,0.050887,98142.0,98141.0,0.24386777]
[1732517837358,0.051287,98142.0,98141.0,0.13356]
[1732517839957,0.0004,98142.0,98141.0,0.184448]
[1732517841049,0.0004,98142.0,98141.0,0.21002846]
[1732517842554,0.0004,98142.0,98141.0,0.15914046]
[1732517843365,0.0004,98142.0,98141.0,0.21002846]
[1732517844454,0.1220367,98142.0,98141.0,0.21002846]
[1732517844672,0.1220367,98142.0,98141.0,0.45389623]
[1732517844673,0.0004,98142.0,98141.0,0.45389623]
[1732517844967,0.0004,98142.0,98141.0,0.21002846]
[1732517845168,0.0004,98142.0,98141.0,0.45416044]
[1732517845655,0.15186191,98155.0,98141.0,0.15914046]
[1732517845859,0.51266191,98156.0,98151.0,0.050883]
[1732517846156,0.51266191,98156.0,98154.0,0.00040001]
[1732517846763,0.3608,98156.0,98154.0,0.00040001]
[1732517847361,0.050881,98155.0,98154.0,0.00040001]
[1732517850565,0.20274291,98155.0,98154.0,0.00040001]
[1732517851664,0.10036291,98155.0,98154.0,0.00040001]
[1732517851861,0.050881,98155.0,98154.0,0.00040001]
[1732517852167,0.050881,98155.0,98154.0,0.13384001]
[1732517855064,0.050881,98155.0,98154.0,0.00040001]
[1732517855264,0.10036291,98155.0,98154.0,0.00040001]
[1732517855461,0.40600291,98155.0,98154.0,0.00040001]
[1732517855863,0.050888,98141.0,98140.0,0.02519052]
[1732517856069,0.76684991,98141.0,98140.0,0.02519052]
[1732517856365,0.76684991,98141.0,98128.0,0.13344]
[1732517856366,0.050894,98129.0,98128.0,0.13344]
[1732517856567,0.56360172,98129.0,98128.0,0.13344]
[1732517856773,0.411694,98129.0,98128.0,0.13344]
[1732517856971,0.411694,98129.0,98127.0,0.0039]
[1732517856972,0.46118742,98129.0,98127.0,0.0039]
[1732517857173,0.04949342,98128.0,98127.0,0.0039]
[1732517857470,0.04989342,98128.0,98127.0,0.0039]
[1732517858271,0.0004,98128.0,98127.0,0.0039]
[1732517858673,0.15212773,98128.0,98127.0,0.0039]
[1732517858863,0.0004,98128.0,98127.0,0.0039]
[1732517860468,0.12170921,98128.0,98127.0,0.0039]
[1732517860665,0.0004,98128.0,98127.0,0.0039]
[1732517862165,0.051295,98128.0,98127.0,0.0039]
[1732517863371,0.051295,98128.0,98127.0,0.054795]
[1732517866473,0.051295,98128.0,98127.0,0.0039]
[1732517869772,0.051295,98128.0,98127.0,0.054795]
[1732517870280,0.051295,98128.0,98127.0,0.0039]
[1732517878076,0.051295,98128.0,98127.0,0.13738]
[1732517878372,0.412095,98128.0,98127.0,0.13738]
[1732517882477,0.53340421,98128.0,98127.0,0.13738]
[1732517883187,0.412095,98128.0,98127.0,0.13738]
[1732517885189,0.412095,98128.0,98127.0,0.32009758]
[1732517885684,0.412095,98128.0,98127.0,0.32052321]
[1732517886079,0.412095,98128.0,98127.0,0.13738]
[1732517886279,0.412095,98128.0,98127.0,0.32054771]
[1732517886489,0.412095,98128.0,98127.0,0.13738]
[1732517890893,0.46159041,98128.0,98127.0,0.13738]
[1732517893909,0.46159041,98128.0,98127.0,0.32063001]
[1732517894409,0.46159046,98128.0,98127.0,0.32063001]
[1732517895107,0.46159046,98128.0,98127.0,0.3206398]
[1732517895408,0.46159046,98128.0,98127.0,0.13738]
[1732517897301,0.46159046,98128.0,98127.0,0.32063571]
[1732517897902,0.46159046,98128.0,98127.0,0.32063145]
[1732517898111,0.46159046,98128.0,98127.0,0.13738]
[1732517898709,0.46159046,98128.0,98127.0,0.32063122]
[1732517899011,0.46159046,98128.0,98127.0,0.13738]
[1732517899514,0.46159046,98128.0,98127.0,0.32063083]
[1732517901305,0.46159046,98128.0,98127.0,0.18715083]
[1732517901612,0.46159046,98128.0,98127.0,0.0039]
[1732517902914,0.46159046,98128.0,98127.0,0.13726]
[1732517904201,0.46159151,98128.0,98127.0,0.13726]
[1732517904613,0.46159151,98128.0,98127.0,0.0039]
[1732517904912,0.46159151,98128.0,98127.0,7.096e-05]
[1732517905112,0.050895,98127.0,98126.0,0.13336]
[1732517905298,0.10039151,98127.0,98126.0,0.13336]
[1732517905504,0.10079151,98127.0,98126.0,0.13336]
[1732517907608,0.050898,98121.0,98120.0,0.18325083]
[1732517907807,0.050898,98121.0,98120.0,0.13336]
[1732517908006,0.10079585,98121.0,98120.0,0.13336]
[1732517908206,0.051298,98121.0,98120.0,0.13336]
[1732517908511,0.20320425,98121.0,98120.0,0.13336]
[1732517908709,0.20320412,98121.0,98120.0,0.184259]
[1732517908910,0.051298,98121.0,98120.0,0.184259]
[1732517909610,0.20320427,98121.0,98120.0,0.184259]
[1732517909812,0.051298,98121.0,98120.0,0.184259]
[1732517910317,0.2031987,98121.0,98120.0,0.36750983]
[1732517911311,0.051298,98121.0,98120.0,0.36750983]
[1732517911504,0.051298,98121.0,98120.0,0.184259]
[1732517911913,0.0004,98121.0,98120.0,0.184259]
[1732517912307,0.1519007,98127.0,98126.0,0.050896]
[1732517912605,0.1519007,98127.0,98126.0,0.051296]
[1732517912812,0.1519007,98127.0,98126.0,0.23448785]
[1732517913015,0.5635957,98128.0,98126.0,0.23448785]
[1732517913408,0.5127007,98128.0,98127.0,0.0004]
[1732517913611,0.3608,98128.0,98127.0,0.0004]
[1732517913819,0.2608,98128.0,98127.0,0.0004]
[1732517914409,0.2108,98128.0,98127.0,0.0004]
[1732517916721,0.12150627,98132.0,98127.0,0.0004]
[1732517917025,0.3608,98137.0,98131.0,0.0004]
[1732517917026,0.12150627,98135.0,98131.0,0.0004]
[1732517917325,0.12150627,98135.0,98134.0,0.051292]
[1732517917618,0.09110605,98137.0,98134.0,0.0004]
[1732517917820,0.12150627,98142.0,98136.0,0.411691]
[1732517918029,0.12147072,98141.0,98137.0,0.24406435]
[1732517918326,0.12147072,98142.0,98140.0,0.050889]
[1732517918622,0.12147072,98144.0,98142.0,0.050887]
[1732517919020,0.12147072,98144.0,98143.0,0.0004]
[1732517919422,0.3608,98147.0,98143.0,0.0004]
[1732517919816,0.3608,98147.0,98146.0,0.0004]
[1732517920920,0.3608,98147.0,98146.0,0.051285]
[1732517924519,0.48213405,98147.0,98146.0,0.051285]
[1732517924721,0.3608,98147.0,98146.0,0.051285]
[1732517926125,0.3608,98147.0,98146.0,0.07629963]
[1732517926625,0.3608,98147.0,98146.0,0.0004]
[1732517926828,0.3608,98147.0,98146.0,0.13364]
[1732517927035,0.7216,98147.0,98146.0,0.0004]
[1732517927330,0.7216,98147.0,98143.0,0.0004]
[1732517927331,0.050886,98144.0,98143.0,0.0004]
[1732517927519,0.15154488,98145.0,98133.0,0.13324]
[1732517927720,0.050892,98133.0,98131.0,0.13324]
[1732517927926,0.09092718,98132.0,98131.0,0.13324]
[1732517928120,0.00040001,98132.0,98131.0,0.13324]
[1732517928521,0.00040001,98132.0,98130.0,0.050893]
[1732517928732,0.05129301,98132.0,98131.0,0.13324]
[1732517932134,0.14222019,98132.0,98131.0,0.13324]
[1732517932333,0.05129301,98132.0,98131.0,0.13324]
[1732517932833,0.14222019,98132.0,98131.0,0.13324]
[1732517933038,0.050895,98127.0,98126.0,0.00152866]
[1732517933435,0.17213623,98127.0,98126.0,0.00152866]
[1732517933638,0.050895,98127.0,98126.0,0.00152866]
[1732517937331,0.083495,98127.0,98126.0,0.00152866]
[1732517937846,0.444295,98127.0,98126.0,0.00152866]
[1732517939334,0.411695,98127.0,98126.0,0.00152866]
[1732517940240,0.050898,98121.0,98120.0,0.0303]
[1732517940740,0.05129801,98121.0,98120.0,0.0303]
[1732517945848,0.050899,98120.0,98119.0,0.13328]
[1732517946149,0.17247719,98120.0,98119.0,0.13328]
[1732517946442,0.05129901,98120.0,98119.0,0.13328]
[1732517947247,0.00040001,98120.0,98119.0,0.050899]
[1732517947445,0.00040001,98120.0,98119.0,0.184059]
[1732517951339,0.05129901,98120.0,98119.0,0.184059]
[1732517952453,0.00040001,98120.0,98119.0,0.184059]
[1732517954547,0.09124751,98120.0,98119.0,0.184059]
[1732517955150,0.00040001,98120.0,98119.0,0.184059]
[1732517956553,0.05129901,98120.0,98119.0,0.36700318]
[1732517957057,0.05129901,98120.0,98119.0,0.184059]
[1732517957757,0.17247719,98120.0,98119.0,0.184059]
[1732517958147,0.17247719,98120.0,98119.0,0.050899]
[1732517958347,0.17247719,98120.0,98119.0,0.184059]
[1732517958550,0.05129901,98120.0,98119.0,0.36702574]
[1732517959552,0.05129901,98120.0,98119.0,0.184059]
[1732517959854,0.05129901,98120.0,98119.0,0.36702574]
[1732517960656,0.05129901,98120.0,98119.0,0.184059]
[1732517972571,0.05129901,98120.0,98119.0,0.13316]
[1732517975170,0.20284389,98120.0,98119.0,0.13316]
[1732517975558,0.05129901,98120.0,98119.0,0.13316]
[1732517976058,0.20284389,98120.0,98119.0,0.13316]
[1732517976253,0.05129901,98120.0,98119.0,0.13316]
[1732517976665,0.20327852,98120.0,98119.0,0.13316]
[1732517976857,0.1007994,98120.0,98119.0,0.13316]
[1732517977464,0.05129901,98120.0,98119.0,0.13316]
[1732517977869,0.10079982,98120.0,98119.0,0.13316]
[1732517978168,0.10079982,98120.0,98119.0,0.31639065]
[1732517978369,0.05129901,98120.0,98119.0,0.31639065]
[1732517978971,0.10080003,98120.0,98119.0,0.31639065]
[1732517979373,0.05129901,98120.0,98119.0,0.31627065]
[1732517979567,0.10080003,98120.0,98119.0,0.13304]
[1732517980270,0.46160002,98120.0,98119.0,0.13304]
[1732517982370,0.46159985,98120.0,98119.0,0.13304]
[1732517985770,0.41209901,98120.0,98119.0,0.13304]
[1732517986776,0.41209901,98120.0,98119.0,0.183939]
[1732517988179,0.41209901,98120.0,98119.0,0.13304]
[1732517990890,0.05129901,98120.0,98119.0,0.183939]
[1732517991587,0.20323056,98120.0,98119.0,0.13304]
[1732517991889,0.05129901,98120.0,98119.0,0.13304]
[1732517994797,0.1007994,98120.0,98119.0,0.183939]
[1732517994979,0.05129901,98120.0,98119.0,0.183939]
[1732517995583,0.10079907,98120.0,98119.0,0.183939]
[1732517998797,0.05129901,98120.0,98119.0,0.183939]
[1732518000986,0.20338423,98120.0,98119.0,0.183939]
[1732518001492,0.20338423,98120.0,98119.0,0.050899]
[1732518001693,0.05129901,98120.0,98119.0,0.183819]
[1732518001893,0.00040001,98120.0,98119.0,0.183819]
[1732518002297,0.00040001,98120.0,98119.0,0.215819]
[1732518004097,0.00040001,98120.0,98119.0,0.45988335]
[1732518004395,0.00040001,98120.0,98119.0,0.215819]
[1732518004788,0.00040001,98120.0,98119.0,0.45988335]
[1732518005299,0.00040001,98120.0,98119.0,0.215819]
[1732518005496,0.05129901,98120.0,98119.0,0.215819]
[1732518007495,0.050899,98120.0,98119.0,0.215819]
[1732518010005,0.050899,98120.0,98119.0,0.183819]
[1732518015898,0.3608,98121.0,98120.0,0.050899]
[1732518016299,0.411698,98121.0,98120.0,0.050899]
[1732518016599,0.411698,98121.0,98120.0,0.23405805]
[1732518016803,0.411698,98121.0,98120.0,0.050899]
[1732518021207,0.0509,98117.0,98114.0,0.18318347]
[1732518021411,0.050902,98114.0,98112.0,0.18318347]
[1732518021604,0.3608,98113.0,98109.0,9.269e-05]
[1732518021805,0.050904,98110.0,98109.0,9.269e-05]
[1732518021997,0.05130401,98110.0,98109.0,9.269e-05]
[1732518022505,0.20323589,98110.0,98109.0,9.269e-05]
[1732518022907,0.05130401,98110.0,98109.0,9.269e-05]
[1732518025710,0.00040001,98110.0,98109.0,9.269e-05]
[1732518026011,0.00040001,98110.0,98109.0,0.03249269]
[1732518026216,0.09150973,98110.0,98109.0,0.03249269]
[1732518027815,0.00040001,98110.0,98109.0,0.03249269]
[1732518031516,0.00040001,98110.0,98109.0,0.08339769]
[1732518032112,0.00040001,98110.0,98109.0,0.44419769]
[1732518032516,0.00040001,98110.0,98109.0,0.57699769]
[1732518033518,0.00040001,98110.0,98109.0,0.21619769]
[1732518033718,0.12183583,98110.0,98109.0,0.21619769]
[1732518034120,0.00040001,98110.0,98109.0,0.08339769]
[1732518034421,0.00040001,98110.0,98109.0,0.21619769]
[1732518034618,0.36120001,98110.0,98109.0,0.21619769]
[1732518035207,0.00040001,98110.0,98109.0,0.08339769]
[1732518035520,0.00040001,98110.0,98109.0,0.21619769]
[1732518035817,0.12182839,98110.0,98109.0,0.21619769]
[1732518037123,0.00040001,98110.0,98109.0,0.21619769]
[1732518037827,0.17273239,98110.0,98109.0,0.21619769]
[1732518038124,0.05130401,98110.0,98109.0,0.21619769]
[1732518038324,0.17273239,98110.0,98109.0,0.21619769]
[1732518038710,0.17272896,98110.0,98109.0,0.21619769]
[1732518039819,0.05130401,98110.0,98109.0,0.16529269]
[1732518040022,0.17272896,98110.0,98109.0,0.16529269]
[1732518040226,0.05130401,98110.0,98109.0,0.13289269]
[1732518042230,0.05130401,98110.0,98109.0,9.269e-05]
[1732518050227,0.05130401,98110.0,98109.0,0.05099769]
[1732518050422,0.17292073,98110.0,98109.0,0.05099769]
[1732518050622,0.05130401,98110.0,98109.0,0.0541805]
[1732518051036,0.17291787,98110.0,98109.0,0.0541805]
[1732518051326,0.05130401,98110.0,98109.0,0.05418042]
[1732518051531,0.05130401,98110.0,98109.0,0.05418045]
[1732518052620,0.05130401,98110.0,98109.0,0.05099769]
[1732518054724,0.05130401,98110.0,98109.0,0.23413839]
[1732518055124,0.05130401,98110.0,98109.0,0.05099769]
[1732518055332,0.05130401,98110.0,98109.0,0.23413945]
[1732518056232,0.05130401,98110.0,98109.0,0.36693945]
[1732518056426,0.05130401,98110.0,98109.0,0.18379769]
[1732518056831,0.05130401,98110.0,98109.0,0.36693945]
[1732518059037,0.05130401,98110.0,98109.0,0.18379769]
[1732518060236,0.00040001,98110.0,98109.0,0.18379769]
[1732518060635,0.05130401,98110.0,98109.0,0.18379769]
[1732518061229,0.05130401,98110.0,98109.0,0.13289269]
[1732518061628,0.05130401,98110.0,98109.0,0.31605824]
[1732518061831,0.05130401,98110.0,98109.0,0.13289269]
[1732518065035,0.05130401,98110.0,98109.0,0.16509269]
[1732518069333,0.05130401,98110.0,98109.0,0.16505269]
[1732518072040,0.00040001,98110.0,98109.0,0.16505269]
[1732518076449,0.15233189,98110.0,98109.0,0.16505269]
[1732518076949,0.00040001,98110.0,98109.0,0.16505269]
[1732518078541,0.00040001,98110.0,98109.0,0.13285269]
[1732518078741,0.04990281,98110.0,98109.0,0.18336061]
[1732518079046,0.08010281,98110.0,98109.0,9.269e-05]
[1732518079247,0.26239208,98110.0,98109.0,9.269e-05]
[1732518079449,0.08010281,98110.0,98109.0,9.269e-05]
[1732518080644,0.26274593,98110.0,98109.0,9.269e-05]
[1732518080957,0.050908,98103.0,98102.0,0.18326792]
[1732518081163,0.6666,98103.0,98084.0,0.05244624]
[1732518081353,0.12163221,98085.0,98084.0,0.05244624]
[1732518081558,0.00040001,98085.0,98084.0,0.05244624]
[1732518082159,0.09160804,98085.0,98084.0,0.05253204]
[1732518082562,0.00040001,98085.0,98084.0,0.18529204]
[1732518082765,0.09160804,98085.0,98084.0,0.18529204]
[1732518082953,0.00040001,98085.0,98084.0,0.18529204]
[1732518083154,0.09158198,98085.0,98084.0,0.18529204]
[1732518083555,0.09158198,98085.0,98084.0,0.05253204]
[1732518083757,0.09158198,98085.0,98084.0,0.18529204]
[1732518083963,0.09158198,98085.0,98084.0,0.1837628]
[1732518084569,0.00040001,98085.0,98084.0,0.1837628]
[1732518084764,0.09158198,98085.0,98084.0,0.1837628]
[1732518085161,0.00040001,98085.0,98084.0,0.1837628]
[1732518088161,0.00040001,98085.0,98084.0,8.58e-05]
[1732518088367,0.05131701,98085.0,98084.0,8.58e-05]
[1732518088863,0.06114545,98085.0,98084.0,8.58e-05]
[1732518089269,0.06114717,98085.0,98084.0,8.58e-05]
[1732518089662,0.18280624,98085.0,98084.0,8.58e-05]
[1732518089865,0.05131701,98085.0,98084.0,8.58e-05]
[1732518092572,0.14235174,98085.0,98084.0,8.58e-05]
[1732518093470,0.00040001,98085.0,98084.0,0.0510038]
[1732518093676,0.00040001,98085.0,98084.0,0.0827038]
[1732518093973,0.36168001,98093.0,98089.0,0.050915]
[1732518094174,0.45271474,98093.0,98089.0,0.050915]
[1732518094778,0.45183473,98093.0,98089.0,0.050915]
[1732518094967,0.3608,98093.0,98092.0,0.0004]
[1732518095279,0.3608,98093.0,98092.0,0.16408]
[1732518095462,0.12177349,98098.0,98094.0,0.050912]
[1732518095669,0.00011442,98098.0,98097.0,0.050911]
[1732518095973,0.00011442,98098.0,98097.0,0.051311]
[1732518096572,0.00011442,98098.0,98097.0,0.412111]
[1732518096878,0.00040001,98103.0,98102.0,0.050908]
[1732518097077,0.00040001,98103.0,98102.0,0.183588]
[1732518097273,0.00040001,98103.0,98102.0,0.183988]
[1732518100963,0.00040001,98103.0,98102.0,0.13308]
[1732518101700,0.09144353,98103.0,98102.0,0.13308]
[1732518101895,0.09144353,98103.0,98102.0,0.0004]
[1732518102091,0.09144353,98103.0,98102.0,0.13308]
[1732518104201,0.00040001,98103.0,98102.0,0.13308]
[1732518104592,0.091439,98103.0,98102.0,0.13308]
[1732518104800,0.00040001,98103.0,98102.0,0.13308]
[1732518105506,0.09144162,98103.0,98102.0,0.13308]
[1732518106004,0.00040001,98103.0,98102.0,0.13308]
[1732518106898,0.00040001,98103.0,98102.0,0.16338]
[1732518113680,0.00040001,98103.0,98102.0,0.0307]
[1732518113879,0.00040001,98103.0,98102.0,0.16338]
[1732518114984,0.00040001,98103.0,98102.0,0.3915]
[1732518115185,0.00040001,98103.0,98102.0,0.52418]
[1732518120176,0.00040001,98103.0,98102.0,0.76824435]
[1732518121089,0.00040001,98103.0,98102.0,0.52418]
[1732518121780,0.00040001,98103.0,98102.0,0.76797191]
[1732518121990,0.00040001,98103.0,98102.0,0.52418]
[1732518122182,0.00040001,98103.0,98102.0,0.76797191]
[1732518122791,0.00040001,98103.0,98102.0,0.52418]
[1732518123488,0.00040001,98103.0,98102.0,0.49388]
[1732518123791,0.00040001,98103.0,98102.0,0.73787465]
[1732518123976,0.00040001,98103.0,98102.0,0.60519465]
[1732518124181,0.09144162,98103.0,98102.0,0.49376]
[1732518124688,0.00040001,98103.0,98102.0,0.49376]
[1732518125083,0.10100033,98103.0,98102.0,0.49376]
[1732518126087,0.09144162,98103.0,98102.0,0.49376]
[1732518126796,0.00040001,98103.0,98102.0,0.49376]
[1732518129188,0.00040001,98103.0,98102.0,0.3612]
[1732518129389,0.00040001,98103.0,98102.0,0.49376]
[1732518129690,0.09144162,98103.0,98102.0,0.49376]
[1732518130089,0.09144162,98103.0,98102.0,0.13296]
[1732518130383,0.00040001,98103.0,98102.0,0.13296]
[1732518130586,0.00040001,98103.0,98102.0,0.37713827]
[1732518131385,0.00040001,98103.0,98102.0,0.13296]
[1732518131596,0.00040001,98103.0,98102.0,0.37713827]
[1732518132490,0.00040001,98103.0,98102.0,0.13296]
[1732518142602,0.12165907,98104.0,98102.0,0.13296]
[1732518142603,0.12165907,98104.0,98103.0,0.050908]
[1732518142998,0.12165907,98104.0,98103.0,0.051308]
[1732518143901,0.12165907,98105.0,98103.0,0.051308]
[1732518144098,0.12165907,98105.0,98104.0,0.24422518]
[1732518144305,0.12149359,98105.0,98103.0,0.051308]
[1732518144597,0.12149359,98108.0,98103.0,0.0004]
[1732518144812,0.12149359,98108.0,98107.0,0.050906]
[1732518145102,0.36168001,98126.0,98107.0,0.30523472]
[1732518145103,0.09113141,98111.0,98107.0,0.30523472]
[1732518145291,0.09113141,98114.0,98112.0,0.050903]
[1732518145497,0.09113141,98117.0,98116.0,0.050901]
[1732518145801,0.09113141,98118.0,98116.0,0.051301]
[1732518145996,0.09113141,98119.0,98116.0,0.051301]
[1732518146300,0.3608,98126.0,98116.0,0.051301]
[1732518146301,0.09113141,98121.0,98118.0,0.3612]
[1732518146601,0.09113141,98123.0,98118.0,0.3612]
[1732518146899,0.09113141,98123.0,98122.0,0.2953282]
[1732518147103,0.033,98133.0,98122.0,0.2953282]
[1732518147104,0.12149359,98128.0,98122.0,0.13296]
[1732518147303,0.12149359,98128.0,98124.0,0.050897]
[1732518147603,0.12149359,98129.0,98124.0,0.051297]
[1732518148504,0.0911244,98125.0,98124.0,0.051297]
[1732518149205,9.166e-05,98125.0,98124.0,0.051297]
[1732518149504,0.09112182,98125.0,98124.0,0.051297]
[1732518149998,9.166e-05,98125.0,98124.0,0.051297]
[1732518152600,0.09112182,98125.0,98124.0,0.051297]
[1732518152906,0.09112182,98125.0,98124.0,0.07605514]
[1732518153300,9.166e-05,98125.0,98124.0,0.07605514]
[1732518154107,9.166e-05,98125.0,98124.0,0.43685514]
[1732518159605,0.00420053,98125.0,98124.0,0.43685514]
[1732518163711,0.00420053,98125.0,98124.0,0.43698594]
[1732518164911,0.00395,98126.0,98124.0,0.69180894]
[1732518165113,0.00395,98126.0,98125.0,0.050896]
[1732518165305,0.00395,98126.0,98125.0,0.357016]
[1732518169106,0.00395,98126.0,98125.0,0.051296]
[1732518172009,0.09087948,98141.0,98125.0,0.357016]
[1732518172212,0.09087948,98142.0,98141.0,0.050888]
[1732518172405,0.09094468,98144.0,98142.0,0.050887]
[1732518172612,0.09094468,98144.0,98141.0,0.183688]
[1732518172813,0.0326,98149.0,98146.0,0.050885]
[1732518172814,0.09094468,98147.0,98146.0,0.050885]
[1732518173218,0.09094468,98147.0,98146.0,0.051285]
[1732518173616,0.0326,98149.0,98148.0,0.050884]
[1732518173913,0.0326,98149.0,98148.0,0.051284]
[1732518174911,0.0326,98149.0,98148.0,0.412084]
[1732518175114,0.0910071,98149.0,98148.0,0.412084]
[1732518175420,0.12117264,98153.0,98148.0,0.412084]
[1732518175421,0.0910071,98153.0,98152.0,0.050882]
[1732518175621,0.00011494,98155.0,98152.0,0.050882]
[1732518175622,0.00011494,98155.0,98152.0,0.1324]
[1732518175819,0.00011494,98155.0,98154.0,0.050881]
[1732518176121,0.00011494,98155.0,98154.0,0.051281]
[1732518177417,0.00011494,98155.0,98154.0,0.183681]
[1732518189530,0.0910071,98169.0,98168.0,0.050874]
[1732518189847,0.0910071,98170.0,98169.0,0.050873]
[1732518190234,0.0910071,98171.0,98170.0,0.050873]
[1732518190430,0.0910071,98172.0,98171.0,0.050872]
[1732518190624,0.0910071,98173.0,98172.0,0.050872]
[1732518190824,0.0910071,98174.0,98173.0,0.050871]
[1732518191240,0.0910071,98174.0,98173.0,0.051271]
[1732518191723,0.0910071,98175.0,98173.0,0.0004]
[1732518191928,0.0910071,98175.0,98174.0,0.050871]
[1732518192135,0.0910071,98175.0,98174.0,0.051271]
[1732518192534,0.0303,98180.0,98179.0,0.050868]
[1732518192733,0.0303,98180.0,98179.0,0.13224]
[1732518193036,0.15147264,98180.0,98179.0,0.183508]
[1732518193630,0.0303,98180.0,98179.0,0.183508]
[1732518194133,0.15152061,98180.0,98179.0,0.183508]
[1732518194340,0.0303,98180.0,98179.0,0.183508]
[1732518195038,0.0303,98180.0,98179.0,0.20873463]
[1732518197539,0.3608,98186.0,98179.0,0.15786663]
[1732518197734,0.3608,98186.0,98185.0,0.050865]
[1732518198033,0.3608,98186.0,98185.0,0.051265]
[1732518199535,0.48202061,98186.0,98185.0,0.051265]
[1732518199728,0.3608,98186.0,98185.0,0.051265]
[1732518200640,0.48202061,98186.0,98185.0,0.051265]
[1732518200841,0.48202061,98186.0,98185.0,0.183505]
[1732518201636,0.3608,98186.0,98185.0,0.183505]
[1732518206543,0.37033672,98186.0,98185.0,0.183505]
[1732518206739,0.37033657,98186.0,98185.0,0.183505]
[1732518208140,0.00953657,98186.0,98185.0,0.183505]
[1732518208643,0.12128636,98187.0,98185.0,0.183505]
[1732518209043,0.12128636,98188.0,98187.0,0.050864]
[1732518209429,0.081762,98191.0,98188.0,0.050863]
[1732518209629,0.081762,98191.0,98189.0,0.050863]
[1732518209844,0.081762,98191.0,98190.0,0.0004]
[1732518211142,0.081762,98191.0,98190.0,0.051263]
[1732518212342,0.081762,98191.0,98190.0,0.183503]
[1732518216544,0.081762,98191.0,98190.0,0.0004]
[1732518216746,0.081762,98191.0,98190.0,0.13248]
[1732518217052,0.2332278,98191.0,98190.0,0.13248]
[1732518217438,0.13122568,98191.0,98190.0,0.13248]
[1732518217749,0.1312259,98191.0,98190.0,0.0004]
[1732518217939,0.081762,98191.0,98190.0,0.13248]
[1732518218345,0.1312254,98191.0,98190.0,0.13248]
[1732518221234,0.1312254,98191.0,98190.0,0.0002223]
[1732518224047,0.1003254,98191.0,98190.0,0.0002223]
[1732518229554,0.28208436,98191.0,98190.0,0.0002223]
[1732518231451,0.1003254,98191.0,98190.0,0.0002223]
[1732518232148,0.050864,98187.0,98186.0,0.26427392]
[1732518232351,0.1003274,98187.0,98186.0,0.39635392]
[1732518232551,0.1003274,98187.0,98186.0,0.213845]
[1732518232552,0.1007274,98187.0,98186.0,0.213845]
[1732518234057,0.1007274,98187.0,98186.0,0.081765]
[1732518234251,0.1007274,98187.0,98186.0,0.213845]
[1732518235053,0.051264,98187.0,98186.0,0.213845]
[1732518236451,0.20321793,98187.0,98186.0,0.213845]
[1732518236661,0.051264,98187.0,98186.0,0.213845]
[1732518240051,0.20321182,98187.0,98186.0,0.213845]
[1732518240852,0.051264,98187.0,98186.0,0.213845]
[1732518241255,0.20321709,98187.0,98186.0,0.213845]
[1732518241647,0.051264,98187.0,98186.0,0.213845]
[1732518242756,0.0004,98187.0,98186.0,0.213845]
[1732518242963,0.0004,98187.0,98186.0,0.48926998]
[1732518243763,0.00071,98192.0,98186.0,0.606645]
[1732518243951,0.12156761,98188.0,98186.0,0.55578]
[1732518244255,0.12157014,98187.0,98186.0,0.606645]
[1732518244459,0.12157014,98189.0,98188.0,0.050864]
[1732518244647,0.050862,98192.0,98188.0,0.050864]
[1732518244852,0.050862,98192.0,98190.0,0.24406808]
[1732518245052,0.050862,98192.0,98190.0,0.29493108]
[1732518245259,0.050862,98192.0,98190.0,0.24406808]
[1732518245559,0.050862,98192.0,98191.0,0.050862]
[1732518248961,0.0001204,98195.0,98194.0,0.050861]
[1732518249365,0.0001204,98195.0,98194.0,0.051261]
[1732518249567,0.0001204,98195.0,98194.0,0.23419831]
[1732518250063,0.0509804,98195.0,98194.0,0.051261]
[1732518252465,0.0509804,98195.0,98194.0,0.183141]
[1732518257859,0.0001204,98195.0,98194.0,0.183141]
[1732518264273,0.0001204,98195.0,98194.0,0.36604631]
[1732518266082,0.0001204,98195.0,98194.0,0.183141]
[1732518282789,0.0001204,98195.0,98194.0,0.051261]
[1732518282988,0.1216764,98195.0,98194.0,0.182941]
[1732518283383,0.12167555,98195.0,98194.0,0.182941]
[1732518283779,0.0001204,98195.0,98194.0,0.182941]
[1732518284684,0.12166263,98195.0,98194.0,0.182941]
[1732518286787,0.0001204,98195.0,98194.0,0.182941]
[1732518287290,0.12166263,98195.0,98194.0,0.182941]
[1732518287490,0.0001204,98195.0,98194.0,0.182941]
[1732518288198,0.0001204,98195.0,98194.0,0.543741]
[1732518288386,0.09126249,98195.0,98194.0,0.543741]
[1732518289397,0.0001204,98195.0,98194.0,0.543741]
[1732518289895,0.09126249,98195.0,98194.0,0.543741]
[1732518290194,0.0001204,98195.0,98194.0,0.543741]
[1732518294393,0.09121549,98195.0,98194.0,0.543741]
[1732518295291,0.0001204,98195.0,98194.0,0.543741]
[1732518295491,0.0001204,98195.0,98194.0,0.84811655]
[1732518296001,0.09109509,98199.0,98198.0,0.050858]
[1732518296497,0.1,98200.0,98199.0,0.050858]
[1732518296703,0.1,98200.0,98199.0,0.38896438]
[1732518296903,0.1,98200.0,98199.0,0.3620825]
[1732518297292,0.1,98200.0,98199.0,0.6668535]
[1732518297613,0.1,98200.0,98199.0,0.66648262]
[1732518298103,0.1,98200.0,98199.0,0.389329]
[1732518298606,0.1,98200.0,98199.0,0.66692718]
[1732518299307,0.1,98200.0,98199.0,0.389329]
[1732518300403,0.1,98200.0,98199.0,0.084558]
[1732518300604,0.1,98200.0,98199.0,0.389329]
[1732518300907,0.1,98200.0,98199.0,0.084558]
[1732518303803,0.1,98200.0,98199.0,0.216038]
[1732518305305,0.1,98200.0,98199.0,0.882358]
[1732518305611,0.09104491,98214.0,98208.0,0.050853]
[1732518305805,0.09104491,98216.0,98215.0,0.05085]